Cogmind - Beta 14 @@@ ROGUE MODE // 2024.10.02 @ 17:42:12 Player: Riksa Result: Destroyed by S-10 Pest with Light Assault Rifle Performance ------------- Evolutions (0) 0 Regions Visited (1) 200 Robots Destroyed (20) 100 Value Destroyed (512) 512 Prototype IDs (1) 20 Alien Tech Used (0) 0 Bonus (32) 32 TOTAL SCORE: 864 Bonus ------- High Alert Combat Kills 32 Cogmind --------- Core Integrity 0/250 Matter 300/300 Energy 39/100 System Corruption 0% Temperature Cool (1) Movement Hovering (120) Ox1 Location -10/Materials Parts ------- > --- POWER (1) -------- (None) > --- PROPULSION (2) --- Hover Unit > --- UTILITY (2) ------ Heat Sink ECM Suite > --- WEAPON (2) ------- Advanced Beam Cannon Advanced Beam Cannon > --- INVENTORY (5) ---- Aluminum Leg Aluminum Leg Assault Rifle Grenade Launcher Peak State ------------ > --- POWER ------------ Ion Engine > --- PROPULSION ------- Hover Unit Flight Unit > --- UTILITY ---------- Heat Sink Sensor Array > --- WEAPON ----------- Advanced Beam Cannon Advanced Beam Cannon > --- INVENTORY -------- Assault Rifle Grenade Launcher Datajack Welding Torch [Rating: 11] Favorites ----------- Power Light Ion Engine Engine Light Ion Engine Propulsion Wheel Wheel Wheel Hover Unit Hover Unit Flight Unit Flight Unit Utility Sensor Array Device Sensor Array Processor Targeting Computer Weapon Assault Rifle Energy Gun Small Laser Energy Cannon Advanced Beam Cannon Ballistic Gun Assault Rifle Launcher Grenade Launcher Build | -11 -10 ------- Run | Yrd Mat Slots Evolved . | . . Power . | . . Propulsion . | . . Utility . | . . Weapon . | . . Parts Attached 23 | 6 17 Power 2 | 1 1 Engine 2 | 1 1 Core . | . . Reactor . | . . Propulsion 4 | 2 2 Treads . | . . Leg . | . . Wheel 2 | 2 . Hover 1 | . 1 Flight 1 | . 1 Utility 6 | . 6 Device 5 | . 5 Storage . | . . Processor 1 | . 1 Hackware . | . . Protection . | . . Artifact . | . . Weapon 11 | 3 8 Energy Gun 2 | 2 . Energy Cannon 5 | . 5 Ballistic Gun 2 | 1 1 Ballistic Cannon . | . . Launcher 2 | . 2 Special Weapon . | . . Impact Weapon . | . . Slashing Weapon . | . . Piercing Weapon . | . . Special Melee Weapon . | . . Unidentified Prototypes 1 | . 1 Parts Lost 7 | . 7 Power 2 | . 2 Propulsion 3 | . 3 Utility 2 | . 2 Weapon . | . . Highest Loss Streak 2 | . 2 To Critical Strikes . | . . Average Slot Usage (%) 81 | . 81 Engine 10 | . 10 Wheel 10 | . 10 Hover 8 | . 8 Flight 4 | . 4 Device 18 | . 18 Processor 2 | . 2 Energy Cannon 17 | . 17 Ballistic Gun 3 | . 3 Launcher 5 | . 5 Peak Build Rating 11 | 5 11 Average Rating 6 | 4 8 On Entrance 2 | . 5 Naked Turns . | . . Heaviest Build 15 | 6 15 Greatest Support 20 | 20 20 Greatest Overweight (x) 2 | . 2 Average Overweight (x) . | . . Largest Inventory Capacity 5 | 5 5 Average Capacity 5 | 5 5 Most Carried 5 | 5 5 Average Carried 3 | 3 3 Final Capacity 5 | 5 5 Final Carried 4 | 4 4 Class Distribution -------------------- 100% | Mutant Dominant Class ---------------- Mutant | -10/Materials Resources | -11 -10 ----------- Run | Yrd Mat Matter Collected 548 | 281 267 Remotely 114 | . 114 Salvage Created 446 | 36 410 Parts 27 | 2 25 Haulers Intercepted . | . . Recyclers Shooed 1 | . 1 Parts Field Recycled . | . . Retrieved Matter . | . . Parts Self-Destructed . | . . Prevented . | . . Kills | -11 -10 ------- Run | Yrd Mat Combat Hostiles Destroyed 15 | 1 14 Guns 3 | 1 2 Cannons 6 | . 6 AOE 5 | . 5 Classes Destroyed 6 | 1 5 Worker 2 | . 2 Builder 1 | . 1 Operator 1 | . 1 Watcher 1 | . 1 Swarmer 5 | . 5 Grunt 10 | 1 9 Best Kill Streak 4 | 1 4 Combat Bots Only 3 | 1 3 Max Kills in Single Turn 3 | 1 3 Gunslinging . | . . Exploded 2 | . 2 Melee . | . . Uniques/NPCs Destroyed . | . . Combat | -11 -10 -------- Run | Yrd Mat Hostile Shots Fired 109 | 7 102 Missed 30 | 4 26 Damage Taken 854 | 36 818 Core 256 | . 256 Absorbed by Shields . | . . Regen/Repaired (Parts) 59 | . 59 Core Remaining (%) 100 | 100 . Volleys Fired 65 | 7 58 Largest 2 | 1 2 Hottest 136 | 20 136 Shots Fired 96 | 7 89 Gun 16 | 7 9 Cannon 66 | . 66 Launcher 14 | . 14 Special . | . . Kinetic 16 | 7 9 Thermal 66 | . 66 Explosive 14 | . 14 Electromagnetic . | . . Robot Hit Streak 7 | 2 7 Robot Miss Streak 7 | 1 7 Penetration Max . | . . Secondary Targets . | . . Shots Hit Robots 44 | 4 40 Core Hits 26 | 2 24 Critical Kills . | . . Critical Parts Destroyed . | . . Critical Strikes . | . . Melee Attacks . | . . Impact . | . . Slashing . | . . Piercing . | . . Sneak Attacks . | . . Combat Hostiles . | . . Follow-up Attacks . | . . Damage Inflicted 1407 | 64 1343 Guns 131 | 64 67 Cannons 513 | . 513 Explosions 721 | . 721 Melee . | . . Ramming 42 | . 42 Kinetic 131 | 64 67 Thermal 513 | . 513 Explosive 721 | . 721 Electromagnetic . | . . Impact . | . . Slashing . | . . Piercing . | . . Highest Corruption . | . . Average Corruption . | . . Corruption Purged . | . . Corruption Blocked . | . . Overload Shots . | . . Overflow Damage 3 | . 3 Projectiles . | . . Explosions 1 | . 1 Melee 2 | . 2 Knockbacks . | . . Impact . | . . Kinetic . | . . Secondary . | . . Self-Inflicted Damage 26 | . 26 Shots 1 | . 1 Rammed 12 | . 12 Targets Rammed 12 | . 12 Kicked . | . . Crushed . | . . Highest Temperature 288 | . 288 Average Temperature 99 | . 99 Received Heat Transfer 297 | 18 279 Effects 3 | . 3 Interference 3 | . 3 Siege Activations . | . . Robots Corrupted 1 | . 1 Combat Hostiles . | . . Parts Fried 2 | . 2 Impact Corruptions 1 | . 1 Robots Melted 1 | . 1 Combat Hostiles 1 | . 1 Parts Melted 2 | . 2 Heat Transferred 925 | . 925 Parts Sabotaged . | . . Parts Stolen . | . . Parts Stripped . | . . Power Chain Reactions . | . . Alert | -11 -10 ------- Run | Yrd Mat Peak Influence 434 | 20 434 Initial . | . . Average 125 | 6 254 Maximum Alert Level 2 | . 2 Low Security (%) 60 | 100 17 Level 1 37 | . 77 Level 2 2 | . 5 Level 3 . | . . Level 4 . | . . Level 5 . | . . High Security . | . . Max Security . | . . Squads Dispatched 4 | . 4 Investigation 1 | . 1 Extermination . | . . Reinforcement 3 | . 3 Assault . | . . Garrison . | . . Intercept . | . . Searches Triggered . | . . Construction Impeded . | . . Haulers Reinforced . | . . Active Scanning Responses . | . . Cargo Convoy Interrupts . | . . Stealth | -11 -10 --------- Run | Yrd Mat Distress Signals 4 | . 4 Communications Jammed . | . . Distress Signals . | . . Times Spotted 35 | 1 34 Peak Tracking Total 6 | 1 6 Tactical Retreats 3 | . 3 Traps | -11 -10 ------- Run | Yrd Mat Traps Triggered 1 | . 1 Indirectly . | . . Trap Hack Attempts . | . . Triggered . | . . Disarmed . | . . Reprogrammed . | . . Reused . | . . Traps Extracted . | . . Installed . | . . Triggered . | . . Machines | -11 -10 ---------- Run | Yrd Mat Machines Disabled 7 | . 7 Max in Single Turn 1 | . 1 Machines Repaired . | . . Machines Dismantled . | . . Machines Sabotaged . | . . Overloaded Fab Kills . | . . Hacking | -11 -10 --------- Run | Yrd Mat Machines Accessed 4 | . 4 Terminals 2 | . 2 Fabricators . | . . Repair Stations 1 | . 1 Recycling Units 1 | . 1 Scanalyzers . | . . Garrison Access . | . . Total Hacks 17 | . 17 Successful 11 | . 11 Failed 6 | . 6 Catastrophic . | . . Database Lockouts . | . . Manual 1 | . 1 Terminals 8 | . 8 Fabricators . | . . Repair Stations 4 | . 4 Recycling Units 5 | . 5 Scanalyzers . | . . Garrison Access . | . . Terminal Hacks 6 | . 6 Record 3 | . 3 Emergency Access Points 1 | . 1 Alert Level 1 | . 1 Recall Investigation 1 | . 1 Fabricator Hacks . | . . Repair Station Hacks 2 | . 2 Scan Component 1 | . 1 Repair 1 | . 1 Recycling Unit Hacks 3 | . 3 Recycle Component 1 | . 1 Process 1 | . 1 Report Inventory 1 | . 1 Scanalyzer . | . . Garrison Access Hacks . | . . Unauthorized Hacks . | . . Terminals . | . . Fabricators . | . . Repair Stations . | . . Recycling Units . | . . Scanalyzers . | . . Garrison Access . | . . Data Cores Recovered . | . . Used . | . . Hacking Detections 4 | . 4 Full Trace Events 3 | . 3 Feedback Events . | . . Feedback Blocked . | . . Robot Schematics Acquired . | . . Robots Built . | . . Authchips . | . . Time . | . . Total Robot Build Rating . | . . Part Schematics Acquired . | . . Parts Built . | . . Authchips . | . . Time . | . . Total Part Build Rating . | . . Parts Repaired 1 | . 1 Time 26 | . 26 Parts Recycled 1 | . 1 Recycled Matter 35 | . 35 Retrieved Matter . | . . Retrieved Components . | . . Parts Scanalyzed . | . . Part Schematics Acquired . | . . Parts Damaged . | . . Bothacking | -11 -10 ------------ Run | Yrd Mat Used RIF Installer . | . . Robots Hacked . | . . Non-combat . | . . Combat . | . . Robot Hacks Applied . | . . Relay Couplers Released . | . . Fabnet Peak Effective % . | . . Robots Rewired . | . . Allies Hacked . | . . Hacks Repelled . | . . Allies | -11 -10 -------- Run | Yrd Mat Total Allies . | . . Largest Group . | . . Highest-Rated Group . | . . Highest-Rated Ally . | . . Total Orders . | . . Ally Attacks . | . . Total Damage . | . . Kills . | . . Allies Corrupted . | . . Allies Melted . | . . Intel | -11 -10 ------- Run | Yrd Mat Robot Analysis Total . | . . Derelict Logs Recovered . | . . Drone Launches . | . . Drone Recoveries . | . . Exploration | -11 -10 ------------- Run | Yrd Mat Turns Passed 1910 | 995 915 Spaces Moved 991 | 358 633 Core 30 | 21 9 Treads . | . . Legs . | . . Wheels 692 | 337 355 Hover 269 | . 269 Flight . | . . Fastest Speed 50 | 50 60 Average Speed 98 | 78 109 Slowest Speed 180 | 80 180 Overloaded Moves . | . . Propulsion Burnouts . | . . Robots Hopped . | . . Cave-ins Triggered . | . . Exploration Rate (%) 53 | 23 83 Regions Visited 1 Branch Regions . Pre-discovered Areas . | . . Known Exits Taken . | . . Unknown Exits Taken 1 | 1 . Scrap Searched . | . . Spaces Dug . | . . Terrain Destroyed 46 | . 46 Melee . | . . Projectile . | . . AOE 46 | . 46 Terrain Rammed . | . . Walls Destroyed . | . . Machines Disabled . | . . Actions | -11 -10 --------- Run | Yrd Mat Total 1837 | 1066 771 Wait 690 | 685 5 Move 990 | 357 633 Hop . | . . Pick Up 36 | 10 26 Fast Attach . | . . Attach 21 | 6 15 Detach 4 | . 4 Swap 2 | . 2 Drop 17 | 1 16 Fire 65 | 7 58 Melee . | . . Ram 12 | . 12 Kick . | . . Crush . | . . Escape Stasis . | . . Rewire . | . . Trap . | . . Miscellaneous . | . . Route ------- -11/Scrapyard -10/Materials (discovered 4 exits: [*Mat x3] / [*Min]) History --------- Turn | Location | Event 2 | -11/Scrapyard | Met Revision 17 58 | -11/Scrapyard | Discovered new exit (range 8) 996 | -11/Scrapyard | Entered Materials 997 | -10/Materials | Build established: Mutant 1141 | -10/Materials | Discovered new exit (range 9) 1216 | -10/Materials | Discovered new exit (range 11) 1312 | -10/Materials | Discovered new exit (range 12) 1374 | -10/Materials | Repaired Grenade Launcher 1387 | -10/Materials | Core integrity fell below 50% 1608 | -10/Materials | Discovered new exit (range 5) 1894 | -10/Materials | Core integrity fell below 20% 1911 | -10/Materials | Destroyed by S-10 Pest with Light Assault Rifle Last Messages --------------- Acquired 24 matter. G-34 Mercenary destroyed. R-06 Scavenger collects Aluminum Leg. Acquired 32 matter. R-06 Scavenger collects Signal Interpreter. R-06 Scavenger collects Sml. Laser. R-06 Scavenger collects Visual Processing Unit. Ion Engine destroyed. Overheating: System interference. Adv. Beam Cannon temporarily disabled. G-34 Mercenary destroyed. U-05 Engineer builds a Door. Electrolysis Chamber disabled. Acquired ECM Suite. Slammed into A-02 Transporter. Heat Sink broken. Destabilizing: Short circuit. Acquired 3 matter. Slammed into S-10 Pest. [Achievement: First Step to Greatness] Map ----- +----------------------------------------------------+ | """ # ??# """ #????????????#### ### | | ^ """ # ??# """ #???????????????# #?# | | """ # ??# #???????????????# #?# | | # ??# """ #???????????????# #?# | | # # " #???????????????# #?# | | # ""# " " #???????????????# ##? | | ######## # Y"# #???????????????# #?? | | ######### # ""# #???????????????# #?? | | ^ # # # ####+###???????????????# #?# | | # # ###+### #???????????????# #?## | | # # #???????????????# #??# | | # + #?????????####### #??# | | # # #?????????# #??? | | + #######+### #?????????# < #??? | | # #??# ###r###?????????# #??? | | # #??# ]// #?# #???????????# #####??? | | #########??# ]/ #?# #???????????# #???????? | | #?????????# !/ #?# #???????????# #???????? | | #?????????# #?# ############# #???????? | | ##????????# #?# #???????? | | #???#############?# #???????? | | #???# # """ #???????? | | ########## """"" """"" # """ T ###???????? | | + """"" """"" # """w w " #?????????? | | ########## """"" """"" # #?????????? | | ####?????# # @%s #?????????? | | #????????# #% """ [[/#?????????? | | #????????#######+####### "" [//#?????????? | | ??????????????# %"" [ #?????????? | | ??????????????# #?????????? | | ??????????????# #?????????? | | ??????????????# % ########?????????? | | ############### #????????????????? | | # # """ "" #????????????????? | | # # """ "" "" #????????????????? | | "" # # """ "" """ #????????????????? | | """ # + #????????????????? | | """ # # #????????????????? | | """ # ## ##### ###+####????????????????? | | "" # ## #???# # ]#?????????????????? | | # ## #???# < # ] #?????????????????? | | #######+#### #???# # #?????????????????? | | ##### + #???#####!!! #?????????????????? | | ????# """ #### ####????#!! #?????????????????? | | ????# "R" #??#]]] #????#!! #?????????????????? | | ????# " "[#??# ]]][[#????# #?????????????????? | | ????# #??# ]][[#????# #?????????????????? | | ????# #??########????#"" #?????????????????? | | ????# #??????????????#"Y #?????????????????? | | ????#######??????????????#"" #?????????????????? | +----------------------------------------------------+ Best States ------------- Heat Dissipation 35 Energy Generation 10 Energy Capacity 250 Matter Stores 300 Matter Capacity 300 Sight Range 16 Robot Scan Range 14 Terrain Scan Density 10 ECM Strength 1 Evasion (%) 53 Targeting Accuracy 5 Item Schematics ----------------- None Robot Schematics ------------------ None Fabricated ------------ Nothing Alien Tech Used ----------------- None Achievements -------------- First Step to Greatness It's Just You One Hack Too Far Part-time Mechanic Power Corrupts Risk Taker Storm Trooper Uninvited Guest Use The Force Challenges ------------ None Game ------ Seed GuidanceClaymoresDatajack Manual? 0 Play Time 00:37:08 Cumulative 0.6 hours Start 2024.10.01 @ 20:46:18 End 2024.10.02 @ 17:42:12 Sessions 2 Manual Loads 0 Difficulty Rogue Special Mode None Game No. 1 Rogue 1 Adventurer 0 Explorer 0 Win Type - Total 0 Types 0/0/0/0/0/0/0/0/0 Lore% 0 Gallery% 1 Achievement% 3 Wizard Run 0 Options --------- Layout 1 ASCII 0 Keyboard 0 Movement Numpad Keybinds 0 Fullscreen 1 Font 24/Terminus Map View 50x35 Zoom Use 1% Tactical HUD 0 Map Filters NONE Filters NONE Steam 1 RUN: 8a97553e-bde0-4d2c-b7af-75301282ca2b